bitfinex-derivatives/quotes_BTCF0:USTF0_20210111
["timestamp","ask_amount","ask_price","bid_price","bid_amount"]
[1610401331485,0.62347044,34289.0,34260.0,0.13632608]
[1610401331688,0.62359639,34288.0,34260.0,0.13632608]
[1610401331887,0.72851639,34288.0,34260.0,0.13632608]
[1610401332088,0.62359225,34287.0,34260.0,0.13632608]
[1610401332286,0.62359225,34287.0,34286.0,0.13632608]
[1610401332488,0.72858001,34288.0,34286.0,0.13632608]
[1610401332890,0.10492,34288.0,34286.0,0.13632608]
[1610401333290,0.10492,34288.0,34286.0,0.13455156]
[1610401333490,0.10492,34288.0,34285.0,4.2586]
[1610401333791,0.10492,34288.0,34254.0,0.10097]
[1610401334092,0.10492,34288.0,34256.0,3.5788]
[1610401334791,0.10492,34288.0,34287.0,0.13632608]
[1610401335393,0.10492,34288.0,34284.0,4.4828]
[1610401335993,0.04262,34288.0,34284.0,4.4828]
[1610401336797,0.04262,34288.0,34287.0,0.13632608]
[1610401337098,0.0123,34305.0,34270.0,3.8986]
[1610401337298,0.63541811,34305.0,34270.0,3.8986]
[1610401337697,0.62298301,34302.0,34270.0,3.8986]
[1610401337998,0.623179,34297.0,34270.0,3.8986]
[1610401338498,0.62331085,34293.0,34270.0,3.8986]
[1610401338898,0.6232931,34290.0,34270.0,3.8986]
[1610401339401,0.62332877,34292.0,34270.0,3.8986]
[1610401339702,0.6233898,34289.0,34241.0,0.0866]
[1610401340000,0.76188239,34292.0,34241.0,0.0866]
[1610401340001,0.62339899,34288.0,34241.0,3.3617]
[1610401340400,0.62341648,34287.0,34241.0,3.3617]
[1610401340801,0.13632608,34274.0,34252.0,0.13632608]
[1610401341002,0.62343979,34288.0,34241.0,3.2751]
[1610401341202,0.08832,34274.0,34241.0,3.2751]
[1610401343404,0.08832,34274.0,34273.0,0.13632608]
[1610401344005,0.08832,34274.0,34268.0,4.5326]
[1610401345308,0.08832,34274.0,34273.0,0.13632608]
[1610401346309,0.09708,34293.0,34273.0,0.13632608]
[1610401346509,0.72456636,34302.0,34273.0,0.13632608]
[1610401347009,0.10201,34302.0,34273.0,0.13632608]
[1610401347208,0.62254914,34303.0,34273.0,0.13632608]
[1610401347410,0.13632608,34298.0,34294.0,0.13632608]
[1610401347708,0.22152608,34298.0,34294.0,0.13632608]
[1610401349210,0.22152608,34298.0,34294.0,0.1345519]
[1610401349409,0.0852,34298.0,34294.0,0.1345519]
[1610401351015,0.0852,34298.0,34268.0,4.5326]
[1610401351415,0.13632608,34286.0,34282.0,0.13632608]
[1610401351715,0.24895608,34286.0,34282.0,0.13632608]
[1610401352117,0.11263,34286.0,34268.0,4.5326]
[1610401353417,0.11263,34286.0,34282.0,0.13632608]
[1610401353618,0.11263,34286.0,34268.0,4.5326]
[1610401353819,0.11263,34286.0,34258.0,0.2983]
[1610401355323,0.11263,34286.0,34277.0,0.13632608]
[1610401355621,0.11263,34286.0,34258.0,0.2983]
[1610401356624,0.0877,34288.0,34247.0,3.7933]
[1610401356825,0.09872,34286.0,34247.0,3.7933]
[1610401357427,0.13632608,34258.0,34255.0,0.13632608]
[1610401357627,0.21119608,34258.0,34255.0,0.13632608]
[1610401357825,0.21119608,34258.0,34233.0,3.9113]
[1610401358025,0.21119608,34258.0,34228.0,0.1043]
[1610401358324,0.21119608,34258.0,34211.0,4.8461]
[1610401358726,1.0,34248.0,34211.0,4.8461]
[1610401359125,1.10855,34248.0,34211.0,4.8461]
[1610401359526,1.10855,34248.0,34180.0,0.2713]
[1610401359728,3.8817,34243.0,34191.0,3.6154]
[1610401359927,1.10855,34248.0,34180.0,0.2713]
[1610401360135,4.0797,34227.0,34180.0,0.2713]
[1610401360528,4.19015,34227.0,34180.0,0.2713]
[1610401360729,1.0,34210.0,34180.0,0.2713]
[1610401361229,4.3763,34200.0,34158.0,0.11206]
[1610401361442,0.0868,34199.0,34150.0,0.2881]
[1610401361641,4.6564,34186.0,34150.0,0.2881]
[1610401361837,4.6564,34186.0,34158.0,0.13632608]
[1610401362031,4.72546,34186.0,34158.0,0.13632608]
[1610401362231,4.72546,34186.0,34135.0,0.09613]
[1610401362433,4.72546,34186.0,34136.0,0.0889]
[1610401362647,4.72546,34186.0,34135.0,0.09613]
[1610401363739,0.06906,34186.0,34136.0,0.0888]
[1610401363948,0.06906,34186.0,34144.0,4.788]
[1610401364232,0.06906,34186.0,34145.0,1.5868]
[1610401364545,6e-05,34186.0,34185.0,0.13632608]
[1610401364832,0.0691,34200.0,34185.0,0.0882]
[1610401365032,0.0691,34200.0,34187.0,4.2315]
[1610401365234,0.51704495,34237.0,34187.0,4.2315]
[1610401365432,0.51759036,34243.0,34187.0,5.7315]
[1610401365632,0.51742321,34249.0,34187.0,4.2315]
[1610401366134,0.51742161,34253.0,34187.0,4.2315]
[1610401366634,0.51747177,34257.0,34187.0,4.2315]
[1610401366836,0.13632608,34222.0,34212.0,0.13632608]
[1610401367435,0.23325608,34222.0,34212.0,0.13632608]
[1610401367739,0.23325608,34222.0,34199.0,4.0885]
[1610401370943,0.13632608,34218.0,34199.0,4.0885]
[1610401371842,0.09693,34222.0,34199.0,4.0885]
[1610401372447,0.09693,34222.0,34194.0,0.07998]
[1610401372448,0.51887277,34247.0,34194.0,0.07998]
[1610401372744,0.0916,34229.0,34205.0,3.382]
[1610401373047,0.0085,34229.0,34223.0,0.5868]
[1610401373647,0.51976724,34267.0,34223.0,0.5868]
[1610401373844,0.5197527,34265.0,34223.0,0.5868]
[1610401374044,0.5197527,34265.0,34223.0,0.6859]
[1610401374244,0.1073,34265.0,34223.0,0.6859]
[1610401374845,0.1073,34265.0,34249.0,0.13632608]
[1610401375048,0.52021854,34264.0,34249.0,0.13632608]
[1610401375246,0.60851854,34264.0,34233.0,4.3645]
[1610401375451,0.0883,34264.0,34233.0,4.3645]
[1610401375846,0.60901058,34264.0,34233.0,4.3645]
[1610401376647,0.52109714,34262.0,34233.0,4.3645]
[1610401377246,0.13632608,34236.0,34234.0,0.13632608]
[1610401377447,0.13632608,34236.0,34223.0,0.0991]
[1610401377848,0.08219,34244.0,34223.0,0.0991]
[1610401378949,0.08219,34244.0,34219.0,4.903]
[1610401379348,0.08219,34244.0,34243.0,0.13632608]
[1610401379952,0.76440977,34259.0,34243.0,0.13632608]
[1610401379953,0.62845244,34265.0,34243.0,0.13632608]
[1610401380352,0.1073,34265.0,34243.0,0.13632608]
[1610401380755,0.52093384,34276.0,34243.0,0.13632608]
[1610401381154,0.52091109,34279.0,34243.0,0.13632608]
[1610401381355,0.52091109,34279.0,34278.0,0.13632608]
[1610401381553,0.52091109,34279.0,34250.0,0.08613]
[1610401382056,0.07244,34279.0,34250.0,0.08613]
[1610401382657,0.07244,34279.0,34252.0,4.1617]
[1610401383556,0.13632608,34263.0,34259.0,0.13632608]
[1610401384058,0.24146608,34263.0,34259.0,0.13632608]
[1610401384658,0.10514,34263.0,34259.0,0.13632608]
[1610401385659,0.10514,34263.0,34238.0,0.0761]
[1610401385861,0.10514,34263.0,34235.0,4.2438]
[1610401386061,0.10514,34263.0,34262.0,0.13632608]
[1610401388962,0.13632608,34268.0,34262.0,0.13632608]
[1610401389163,0.52098214,34278.0,34235.0,4.2438]
[1610401389463,0.52098086,34276.0,34235.0,4.2438]
[1610401390563,0.62514231,34278.0,34275.0,0.13632608]
[1610401390762,0.07244,34279.0,34275.0,0.13632608]
[1610401391065,0.13632608,34282.0,34275.0,0.13632608]
[1610401392163,0.13632608,34282.0,34263.0,3.8213]
[1610401392363,0.21297608,34282.0,34263.0,3.8213]
[1610401392563,0.13632608,34269.0,34264.0,0.13632608]
[1610401392762,0.24883608,34269.0,34264.0,0.13632608]
[1610401393864,0.11251,34269.0,34264.0,0.13632608]
[1610401394566,0.11251,34269.0,34268.0,0.13632608]
[1610401395196,0.11251,34269.0,34268.0,0.63282608]
[1610401395565,0.07665,34282.0,34268.0,0.63282608]
[1610401395866,0.07665,34282.0,34268.0,0.13632608]
[1610401396464,0.07665,34282.0,34258.0,0.0874]
[1610401396865,0.07665,34282.0,34266.0,4.3562]
[1610401397064,0.07665,34282.0,34281.0,0.13632608]
[1610401397366,0.07665,34282.0,34281.0,0.71672608]
[1610401397565,0.01752602,34301.0,34281.0,0.71672608]
[1610401397865,0.53821157,34303.0,34285.0,3.567]
[1610401398565,0.0123,34305.0,34285.0,3.567]
[1610401399265,0.0123,34305.0,34304.0,0.13632608]
[1610401399564,0.0123,34305.0,34285.0,3.567]
[1610401400968,0.08698,34305.0,34285.0,3.567]
[1610401401167,0.08698,34305.0,34304.0,0.13632608]
[1610401403971,0.08698,34305.0,34285.0,3.567]
[1610401405273,0.08698,34305.0,34304.0,0.13632608]
[1610401405982,0.08698,34305.0,34304.0,0.13455251]
[1610401406575,0.08698,34305.0,34261.0,0.0869]
[1610401406779,0.08698,34305.0,34254.0,3.5529]
[1610401407079,0.13632608,34283.0,34270.0,0.13632608]
[1610401407479,0.08802,34283.0,34220.0,1.5]
[1610401407779,0.08802,34283.0,34227.0,0.16245]
[1610401407977,0.08802,34283.0,34236.0,0.0877]
[1610401408180,0.08802,34283.0,34239.0,4.2033]
[1610401408779,1.0,34274.0,34239.0,4.2033]
[1610401408979,1.11106,34274.0,34227.0,0.07515]
[1610401409179,1.11106,34274.0,34225.0,3.9143]
[1610401409681,1.11106,34274.0,34261.0,0.13632608]
[1610401410182,1.11106,34274.0,34208.0,0.0876]
[1610401410183,1.11106,34274.0,34246.0,3.6332]
[1610401410380,0.01749679,34273.0,34246.0,3.6332]
[1610401410881,0.53740648,34273.0,34246.0,3.6332]
[1610401411080,0.01749716,34272.0,34246.0,3.6332]
[1610401411481,0.1046983,34273.0,34246.0,3.6332]
[1610401411881,0.53747481,34272.0,34246.0,3.6332]
[1610401412783,0.01750013,34270.0,34246.0,3.6332]
[1610401412981,0.51997921,34271.0,34246.0,3.6332]
[1610401412982,0.01750238,34271.0,34246.0,3.6332]
[1610401413382,0.52004609,34272.0,34246.0,3.6332]
[1610401413383,0.53762028,34270.0,34246.0,3.6332]
[1610401413783,0.53758072,34273.0,34246.0,3.6332]
[1610401414184,0.11106,34274.0,34246.0,3.6332]
[1610401414384,1.0,34275.0,34246.0,3.6332]
[1610401414786,0.08802,34283.0,34246.0,3.6332]
[1610401414985,0.08802,34283.0,34247.0,1.5]
[1610401415185,0.01749879,34285.0,34254.0,3.7182]
[1610401415487,0.519854,34292.0,34254.0,3.7182]
[1610401415986,0.2779,34303.0,34254.0,3.7182]
[1610401415987,0.5197498,34299.0,34254.0,3.7182]
[1610401416185,0.5197498,34299.0,34291.0,0.13632608]
[1610401416687,0.13632608,34302.0,34291.0,0.13632608]
[1610401417088,0.2779,34303.0,34280.0,4.4469]
[1610401418088,0.08698,34305.0,34302.0,0.13632608]
[1610401418389,0.08698,34305.0,34260.0,0.0875]
[1610401418590,0.08698,34305.0,34271.0,3.3354]
[1610401419289,0.08698,34305.0,34271.0,3.4235]
[1610401420189,0.08698,34305.0,34304.0,0.13632608]
[1610401421492,0.08698,34305.0,34236.0,0.2994]
[1610401421993,4.3025,34281.0,34236.0,0.2994]
[1610401422393,4.39948,34281.0,34233.0,3.6186]
[1610401422792,4.39948,34281.0,34219.0,0.2848]
[1610401422793,0.13632608,34247.0,34238.0,0.13632608]
[1610401422994,0.23847608,34247.0,34219.0,0.2848]
[1610401423193,0.23847608,34247.0,34211.0,4.2229]
[1610401423593,0.23847608,34247.0,34213.0,0.0868]
[1610401423795,0.23847608,34247.0,34211.0,4.2229]
[1610401424195,0.10215,34247.0,34211.0,4.2229]
[1610401424898,0.10215,34247.0,34245.0,0.13632608]
[1610401426599,0.10215,34247.0,34222.0,0.08877]
[1610401426800,0.10215,34247.0,34223.0,0.0886]
[1610401426999,0.10215,34247.0,34246.0,0.13632608]
[1610401428104,0.2839,34268.0,34246.0,0.13632608]
[1610401428706,0.7748,34268.0,34246.0,0.13632608]
[1610401428902,0.0874,34267.0,34235.0,4.3719]
[1610401429104,0.0874,34267.0,34235.0,0.0876]
[1610401429303,4.7378,34264.0,34215.0,0.07312]
[1610401429502,4.7378,34264.0,34235.0,0.13632608]
[1610401429803,4.7378,34264.0,34215.0,0.07312]
[1610401430305,0.52360815,34263.0,34215.0,0.07312]
[1610401430802,4.7378,34264.0,34215.0,0.07312]
[1610401431202,4.7378,34264.0,34214.0,0.0888]
[1610401431403,4.7378,34264.0,34212.0,4.6957]
[1610401431404,4.7378,34264.0,34249.0,0.13632608]
[1610401431602,0.11373,34267.0,34249.0,0.13632608]
[1610401432205,0.63820537,34267.0,34249.0,0.13632608]
[1610401432505,0.63820537,34267.0,34232.0,4.0714]
[1610401433105,0.52489377,34265.0,34232.0,4.0714]
[1610401433605,0.52506735,34266.0,34237.0,0.13632608]
[1610401433805,0.52507395,34264.0,34232.0,4.0714]
[1610401434206,0.52511966,34263.0,34232.0,4.0714]
[1610401434606,0.52517366,34259.0,34232.0,4.0714]
[1610401434805,0.61061366,34259.0,34232.0,4.0714]
[1610401435009,0.52523314,34256.0,34198.0,2.31261389]
[1610401435306,1.15550847,34256.0,34197.0,2.22687413]
[1610401435507,0.52525861,34255.0,34212.0,4.2144]
[1610401435706,0.52527774,34252.0,34212.0,4.2144]
[1610401436006,0.60635774,34252.0,34214.0,4.8733]
[1610401436207,0.52529998,34251.0,34205.0,0.07611]
[1610401436406,0.52529998,34251.0,34213.0,4.4566]
[1610401436606,0.52525812,34250.0,34213.0,4.4566]
[1610401436907,0.54295617,34247.0,34213.0,4.4566]
[1610401437307,0.01767846,34247.0,34213.0,4.4566]
[1610401437508,0.01767846,34247.0,34222.0,0.13632608]
[1610401437707,0.01767846,34247.0,34213.0,4.4566]
[1610401438108,0.01767853,34249.0,34213.0,4.4566]
[1610401438508,0.01767672,34248.0,34213.0,4.4566]
[1610401439011,0.01767854,34245.0,34213.0,4.4566]
[1610401439208,0.0885,34244.0,34213.0,4.4566]
[1610401439409,0.01768106,34243.0,34214.0,0.0863]
[1610401439608,0.13632608,34215.0,34213.0,4.4566]
[1610401439810,0.20909608,34215.0,34203.0,0.13632608]
[1610401440410,0.07277,34215.0,34199.0,0.088]
[1610401441311,0.07277,34215.0,34198.0,3.3582]
[1610401441510,0.13632608,34199.0,34192.0,0.13632608]
[1610401441711,0.13632608,34199.0,34179.0,2.24964686]
[1610401442112,0.13632608,34199.0,34178.0,4.084]
[1610401443516,0.13632608,34179.0,34178.0,4.084]
[1610401443714,0.13632608,34179.0,34161.0,0.2745]
[1610401443915,0.13632608,34179.0,34154.0,3.6671]
[1610401445217,0.13632608,34179.0,34147.0,2.26660236]
[1610401445619,0.13632608,34154.0,34140.0,2.35235266]
[1610401445920,0.13632608,34154.0,34140.0,0.0888]
[1610401446218,0.13632608,34154.0,34136.0,2.26392708]
[1610401446519,0.24658608,34154.0,34133.0,2.26417391]
[1610401446718,0.24658608,34154.0,34120.0,6.6064428]
[1610401446719,0.11026,34154.0,34122.0,2.26088598]
[1610401447119,0.11026,34154.0,34120.0,3.6456]
[1610401447321,0.11026,34154.0,34131.0,4.4297]
[1610401447520,0.0899,34164.0,34131.0,4.53518]
[1610401447719,0.10833,34175.0,34131.0,4.53518]
[1610401447920,0.10833,34175.0,34160.0,0.13632608]
[1610401448120,0.10833,34175.0,34152.0,0.10606]
[1610401448720,1.0,34159.0,34152.0,0.10606]
[1610401448921,1.09748,34159.0,34152.0,0.10606]
[1610401449320,1.09748,34159.0,34131.0,4.53518]
[1610401449520,1.09748,34159.0,34131.0,0.10548]
[1610401450122,1.0,34159.0,34131.0,0.10548]
[1610401450326,1.11039,34159.0,34131.0,0.10548]
[1610401450521,1.11039,34159.0,34132.0,0.0867]
[1610401450722,0.11039,34159.0,34131.0,0.10548]
[1610401450921,0.11039,34159.0,34141.0,0.13632608]
[1610401451122,0.11039,34159.0,34141.0,0.21685608]
[1610401451322,4.5024,34167.0,34141.0,0.21685608]
[1610401452223,0.089,34166.0,34141.0,0.08053]
[1610401453031,4.5024,34167.0,34141.0,0.08053]
[1610401453627,0.13632608,34142.0,34141.0,0.08053]
[1610401453826,0.13632608,34142.0,34141.0,0.05463]
[1610401454026,4.68952608,34142.0,34141.0,0.01173]
[1610401454629,4.68952608,34142.0,34104.0,3.08118]
[1610401455030,4.5532,34142.0,34104.0,3.08118]
[1610401456230,4.5532,34142.0,34112.0,0.13632608]
[1610401456532,4.5532,34142.0,34112.0,0.23032608]
[1610401458331,4.5532,34142.0,34112.0,0.094]
[1610401459533,4.6421,34142.0,34112.0,0.094]
[1610401460237,0.13632608,34114.0,34112.0,0.23032608]
[1610401460433,4.5532,34142.0,34112.0,0.094]
[1610401461235,4.64,34142.0,34112.0,0.094]
[1610401461636,4.64,34142.0,34104.0,3.08118]
[1610401462336,4.64,34142.0,34108.0,0.13632608]
[1610401462536,4.64,34142.0,34104.0,3.08118]
[1610401462740,4.5532,34142.0,34104.0,3.08118]
[1610401463137,0.09621,34146.0,34095.0,0.0879]
[1610401463337,1.0,34150.0,34095.0,0.0879]
[1610401463338,1.0,34150.0,34107.0,3.5884]
[1610401463539,1.0,34150.0,34107.0,3.65922]
[1610401464337,1.0,34150.0,34149.0,0.13632608]
[1610401464638,1.0,34150.0,34149.0,0.21392608]
[1610401464838,4.6145,34175.0,34149.0,0.21392608]
[1610401465038,1.2897,34193.0,34149.0,0.21392608]
[1610401465241,4.5291,34182.0,34149.0,0.0776]
[1610401465441,4.614,34182.0,34149.0,0.0776]
[1610401466141,0.0849,34182.0,34149.0,4.1259]
[1610401466541,0.07849,34191.0,34149.0,4.1259]
[1610401466739,0.11035,34206.0,34149.0,4.1259]
[1610401466940,0.13632608,34184.0,34173.0,0.13632608]
[1610401467342,0.09715,34191.0,34149.0,4.1259]
[1610401469141,0.13632608,34184.0,34149.0,4.1259]
[1610401469942,0.09715,34191.0,34149.0,4.1259]
[1610401470141,0.09715,34191.0,34149.0,4.2133]
[1610401470543,0.11035,34206.0,34149.0,0.165]
[1610401471044,0.11035,34206.0,34164.0,3.6098]
[1610401471242,0.2956,34224.0,34164.0,3.6098]
[1610401471243,0.13632608,34207.0,34164.0,3.70899]
[1610401471445,0.2956,34224.0,34164.0,3.70899]
[1610401472244,0.2956,34224.0,34165.0,0.0865]
[1610401473145,0.524,34223.0,34164.0,3.70899]
[1610401474045,0.524,34223.0,34182.0,0.13632608]
[1610401474046,0.13632608,34186.0,34182.0,0.13632608]
[1610401474245,0.10672,34196.0,34182.0,0.13632608]
[1610401474446,0.07737,34206.0,34182.0,0.63079]
[1610401476249,0.07737,34206.0,34205.0,0.13632608]
[1610401476949,0.07737,34206.0,34191.0,3.9617]
[1610401479450,0.13632608,34212.0,34191.0,3.9617]
[1610401480249,0.40083,34224.0,34201.0,0.13632608]
[1610401480950,0.40083,34224.0,34191.0,3.9617]
[1610401481750,0.40083,34224.0,34185.0,0.0864]
[1610401481949,0.10523,34224.0,34185.0,0.0864]
[1610401482251,1.0,34232.0,34200.0,4.4872]
[1610401482450,0.11307,34224.0,34200.0,4.4872]
[1610401482850,0.11307,34224.0,34223.0,0.13632608]
[1610401483451,0.11307,34224.0,34223.0,3.93392608]
[1610401483853,0.11307,34224.0,34223.0,3.7976]
[1610401484654,0.28496804,34265.0,34223.0,3.7976]
[1610401485054,0.273,34265.0,34258.0,0.13632608]
[1610401485456,0.273,34265.0,34251.0,4.5885]
[1610401485759,0.3812,34265.0,34219.0,0.07889]
[1610401485955,0.3812,34265.0,34230.0,4.4412]
[1610401486355,0.3812,34265.0,34230.0,4.53691]
[1610401487656,0.3812,34265.0,34230.0,0.09571]
[1610401487856,0.3812,34265.0,34242.0,3.7994]
[1610401489056,0.3812,34265.0,34250.0,0.13632608]
[1610401491157,0.13632608,34251.0,34242.0,3.7994]
[1610401491357,0.13632608,34251.0,34237.0,0.07617]
[1610401491558,0.24273608,34251.0,34231.0,4.4324]
[1610401493259,0.24273608,34251.0,34203.0,6.2164]
[1610401493260,0.13632608,34232.0,34181.0,0.0873]
[1610401493462,0.13632608,34232.0,34211.0,3.347]
[1610401493463,0.24419608,34232.0,34211.0,3.347]
[1610401495059,0.10787,34232.0,34217.0,0.13632608]
[1610401496162,0.10787,34232.0,34211.0,3.347]
[1610401497064,0.10787,34232.0,34229.0,0.13632608]
[1610401498266,0.10787,34232.0,34211.0,3.347]
[1610401498569,0.10641,34251.0,34190.0,0.09485]
[1610401498866,0.07799,34232.0,34199.0,3.9972]
[1610401499068,0.13632608,34200.0,34199.0,3.9972]
[1610401499368,0.22073608,34200.0,34161.0,0.294]
[1610401499570,0.22073608,34200.0,34160.0,3.9355]
[1610401499868,0.08441,34200.0,34160.0,3.9355]
[1610401501468,0.08441,34200.0,34165.0,0.13632608]
[1610401502468,0.08441,34200.0,34144.0,0.1102]
[1610401502669,4.39031,34200.0,34144.0,0.1102]
[1610401502869,4.47701,34200.0,34144.0,0.1102]
[1610401503069,4.47701,34200.0,34130.0,4.8687]
[1610401504072,0.13632608,34154.0,34114.0,2.25055179]
[1610401504271,0.23947608,34154.0,34114.0,2.25055179]
[1610401504472,0.10315,34154.0,34111.0,6.04805686]
[1610401504672,0.10315,34154.0,34111.0,3.7972]
[1610401506178,0.10315,34154.0,34118.0,0.13632608]
[1610401507077,0.10315,34154.0,34111.0,3.7972]
[1610401507275,0.10315,34154.0,34100.0,0.09091]
[1610401507276,0.10315,34154.0,34092.0,0.07567]
[1610401507475,4.0284,34153.0,34092.0,0.07567]
[1610401507980,4.0284,34153.0,34114.0,0.13632608]
[1610401508176,0.2882,34152.0,34114.0,0.13632608]
[1610401508377,0.2882,34152.0,34092.0,0.07567]
[1610401508577,0.2882,34152.0,34085.0,3.3704]
[1610401509582,0.0875,34151.0,34085.0,3.3704]
[1610401509982,0.0875,34151.0,34098.0,0.13632608]
[1610401510184,0.09435,34104.0,34061.0,2.2476114]
[1610401510483,0.09435,34104.0,34070.0,4.0026]
[1610401510682,0.09435,34104.0,34070.0,4.08616]
[1610401512086,0.09435,34104.0,34080.0,0.13632608]
[1610401512386,0.09435,34104.0,34070.0,4.08616]
[1610401512584,0.09435,34104.0,34070.0,4.0026]
[1610401514088,0.13632608,34071.0,34063.0,0.13632608]
[1610401515588,0.08725,34076.0,34063.0,0.13632608]
[1610401515790,0.1067,34084.0,34062.0,0.10435]
[1610401516288,0.1067,34084.0,34079.0,0.13632608]
[1610401516889,0.1067,34084.0,34062.0,0.10435]
[1610401518890,0.13632608,34083.0,34079.0,0.13632608]
[1610401519294,0.13632608,34083.0,34062.0,0.10435]
[1610401519492,0.13632608,34083.0,34058.0,3.6461]
[1610401519793,0.1067,34084.0,34059.0,0.0868]
[1610401519992,0.1067,34084.0,34060.0,0.0875]
[1610401520493,0.09435,34104.0,34060.0,0.0875]
[1610401520694,0.2921,34123.0,34060.0,0.0875]
[1610401520895,0.13632608,34100.0,34060.0,0.0875]
[1610401521094,0.13632608,34100.0,34065.0,4.5055]
[1610401521294,0.13632608,34100.0,34065.0,4.58494]
[1610401522595,0.13632608,34100.0,34065.0,4.5055]
[1610401522995,0.09774,34110.0,34065.0,4.5055]
[1610401523195,0.5093,34109.0,34065.0,4.5055]
[1610401523397,0.596,34109.0,34065.0,4.5055]
[1610401524302,0.5093,34109.0,34065.0,4.5055]
[1610401524897,0.5093,34109.0,34092.0,0.13632608]
[1610401525099,0.09774,34110.0,34092.0,0.13632608]
[1610401526198,3.5408,34128.0,34078.0,4.8734]
[1610401526400,3.6299,34128.0,34078.0,4.8734]
[1610401526601,3.6299,34128.0,34076.0,0.10159]
[1610401526602,0.0891,34128.0,34076.0,0.10159]
[1610401526803,0.0891,34128.0,34054.0,0.16652]
[1610401526804,3.4068,34110.0,34055.0,3.4734]
[1610401527101,3.507,34110.0,34055.0,3.4734]
[1610401527904,0.0873,34109.0,34055.0,3.4734]
[1610401528706,0.0873,34109.0,34066.0,0.13632608]
[1610401529205,0.0873,34109.0,34055.0,3.4634]
[1610401529605,0.0873,34109.0,34046.0,0.08625]
[1610401529910,0.09786,34087.0,34046.0,0.08625]
[1610401530206,3.45469,34070.0,34022.0,0.279]
[1610401530405,3.45469,34070.0,34020.0,4.0304]
[1610401530907,4.7087,34058.0,34003.0,4.4645]
[1610401531207,3.5458,34057.0,34023.0,0.09813]
[1610401531607,3.61663,34057.0,34023.0,0.09813]
[1610401532305,3.61663,34057.0,34024.0,0.0874]
[1610401532306,0.07083,34057.0,34024.0,0.0874]
[1610401532606,0.2896,34056.0,33971.0,0.277]
[1610401532807,3.2975,34018.0,33971.0,0.277]
[1610401533206,3.2975,34018.0,33956.0,3.4859]
[1610401533207,0.13632608,33996.0,33967.0,0.13632608]
[1610401533506,3.7848,33991.0,33955.0,0.19922]
[1610401533906,3.7848,33991.0,33955.0,0.11132]
[1610401534106,3.87761,33991.0,33955.0,0.11132]
[1610401535208,0.0888,33990.0,33955.0,0.11132]
[1610401535909,0.13632608,33956.0,33955.0,0.11132]
[1610401536308,0.08928,33978.0,33955.0,0.11132]
[1610401536309,0.03928,33978.0,33955.0,0.11132]
[1610401536912,8e-05,33978.0,33965.0,4.4339]
[1610401537112,3.8752,34032.0,33965.0,4.4339]
[1610401537310,3.8752,34032.0,33965.0,4.5469]
[1610401537711,0.13632608,34019.0,34008.0,0.13632608]
[1610401537929,4.8442,34037.0,34008.0,0.13632608]
[1610401538212,4.92338,34037.0,33989.0,3.8371]
[1610401539315,0.0891,34036.0,33989.0,3.8371]
[1610401539617,4.231,34021.0,33965.0,4.96708099]
[1610401539814,0.13632608,33966.0,33965.0,0.50658099]
[1610401541214,0.08846,33979.0,33965.0,0.50658099]
[1610401541414,1.0,34015.0,33965.0,0.50658099]
[1610401541617,1.0,34015.0,33978.0,3.6969]
[1610401541814,1.0,34015.0,34013.0,0.13632608]
[1610401542120,1.0,34015.0,34002.0,3.8428]
[1610401542915,0.13632608,34023.0,34002.0,3.8428]
[1610401543115,0.088,34039.0,34002.0,3.8428]
[1610401543514,0.088,34039.0,33978.0,0.10171]
[1610401543718,3.7175,34024.0,33976.0,3.8311]
[1610401544117,0.089,34023.0,33976.0,3.8311]
[1610401544517,3.7175,34024.0,33976.0,3.8311]
[1610401544919,0.01058469,34077.0,33976.0,0.0878]
[1610401545119,3.8483,34057.0,33984.0,4.48426]
[1610401545719,0.13632608,34022.0,33984.0,4.48426]
[1610401546119,3.8483,34057.0,33984.0,4.48426]
[1610401546321,0.09514,34026.0,33984.0,4.48426]
[1610401547721,0.13632608,34008.0,34004.0,0.13632608]
[1610401549430,0.13632608,34008.0,33984.0,0.09956]
[1610401549823,0.13632608,34008.0,33989.0,0.13632608]
[1610401551823,0.13632608,33999.0,33989.0,0.13632608]
[1610401552925,0.13632608,33999.0,33984.0,0.09956]
[1610401553326,0.13632608,33999.0,33979.0,4.7153]
[1610401553725,0.09757,34008.0,33983.0,0.13632608]
[1610401553926,0.09757,34008.0,33983.0,0.21231608]
[1610401554126,0.09757,34008.0,33983.0,0.07599]
[1610401555827,0.09757,34008.0,33986.0,0.13632608]
[1610401556528,0.09757,34008.0,33983.0,0.07599]
[1610401557029,0.09757,34008.0,33976.0,0.10602]
[1610401557230,4.5829,34009.0,33976.0,0.10602]
[1610401557531,4.5829,34009.0,33965.0,0.50658099]
[1610401558230,0.13632608,33966.0,33965.0,0.50658099]
[1610401559231,0.10639,33967.0,33965.0,0.50658099]
[1610401560632,0.13632608,33966.0,33965.0,0.50658099]
[1610401562537,4.62742608,33966.0,33965.0,0.50658099]
[1610401563335,0.13632608,33966.0,33965.0,0.50658099]
[1610401563535,0.13632608,33966.0,33965.0,0.43588099]
[1610401563835,0.13632608,33966.0,33965.0,0.14388099]
[1610401564236,4.95492608,33966.0,33965.0,8.099e-05]
[1610401564438,4.95492608,33966.0,33868.0,2.21249779]
[1610401564638,0.13632608,33883.0,33878.0,0.13632608]
[1610401565240,0.09584,33898.0,33878.0,0.13632608]
[1610401565739,0.09584,33898.0,33876.0,0.08355]
[1610401566738,0.09584,33898.0,33897.0,0.13632608]
[1610401566938,0.09584,33898.0,33876.0,0.08355]
[1610401568742,0.09584,33898.0,33887.0,0.13632608]
[1610401568978,0.09584,33898.0,33876.0,0.08355]
[1610401569941,0.09584,33898.0,33850.0,4.8907]
[1610401570345,0.10976,33898.0,33850.0,4.8907]
[1610401570542,0.10976,33898.0,33850.0,4.98893]
[1610401571144,0.10976,33898.0,33868.0,0.13632608]
[1610401571545,0.10976,33898.0,33868.0,0.24040608]